[Event "*** Titled Tuesday Blitz"]
[Site "Chess.com"]
[Date "2021.04.20"]
[Round "2"]
[White "yonaltimur"]
[Black "BvsN"]
[Result "0-1"]
[WhiteElo "1755"]
[BlackElo "2365"]
[TimeControl "180+1"]
[EndTime "10:15:59 PDT"]
[Termination "BvsN won on time"]

1. e4 {[%clk 0:03:00.9]} 1... c5 {[%clk 0:02:59.5]} 2. Nf3 {[%clk 0:02:55.3]}
2... e6 {[%clk 0:02:59.9]} 3. d4 {[%clk 0:02:54.8]} 3... cxd4 {[%clk 0:03:00.8]}
4. Nxd4 {[%clk 0:02:49.4]} 4... a6 {[%clk 0:03:01.3]} 5. Bd3 {[%clk 0:02:46.4]}
5... Nf6 {[%clk 0:03:01]} 6. O-O {[%clk 0:02:38.3]} 6... Qc7 {[%clk 0:03:01.1]}
7. Qe2 {[%clk 0:02:35.1]} 7... d6 {[%clk 0:03:01.5]} 8. c4 {[%clk 0:02:25.7]}
8... g6 {[%clk 0:03:01.8]} 9. Nc3 {[%clk 0:02:24.5]} 9... Bg7 {[%clk 0:03:01.6]}
10. Be3 {[%clk 0:02:21.9]} 10... O-O {[%clk 0:03:01.1]} 11. Rac1 {[%clk
0:02:20.7]} 11... Nbd7 {[%clk 0:03:00.2]} 12. b3 {[%clk 0:02:17.4]} 12... Ne5
{[%clk 0:02:59.5]} 13. Bb1 {[%clk 0:02:15.2]} 13... b6 {[%clk 0:02:57.3]} 14. f3
{[%clk 0:02:06.4]} 14... Bb7 {[%clk 0:02:55.7]} 15. Qf2 {[%clk 0:01:41.8]} 15...
Rab8 {[%clk 0:02:39.1]} 16. Nde2 {[%clk 0:01:34.4]} 16... Ba8 {[%clk 0:02:32.8]}
17. Na4 {[%clk 0:01:32.7]} 17... Nfd7 {[%clk 0:02:29.3]} 18. a3 {[%clk 0:01:08]}
18... Nc5 {[%clk 0:02:26.9]} 19. Nxc5 {[%clk 0:01:01.1]} 19... bxc5 {[%clk
0:02:26.6]} 20. Bc2 {[%clk 0:00:57.8]} 20... a5 {[%clk 0:02:23.8]} 21. a4 {[%clk
0:00:54.2]} 21... Bc6 {[%clk 0:02:16.5]} 22. Rfd1 {[%clk 0:00:46.2]} 22... f5
{[%clk 0:02:12.8]} 23. exf5 {[%clk 0:00:44.9]} 23... gxf5 {[%clk 0:02:11.2]} 24.
Nf4 {[%clk 0:00:34.9]} 24... Rbe8 {[%clk 0:02:04.1]} 25. Nh5 {[%clk 0:00:28.5]}
25... Rf7 {[%clk 0:02:04.4]} 26. Kh1 {[%clk 0:00:11.7]} 26... Kh8 {[%clk
0:02:04.5]} 27. Nxg7 {[%clk 0:00:10.9]} 27... Rxg7 {[%clk 0:02:04.8]} 28. Bf4
{[%clk 0:00:09.7]} 28... Reg8 {[%clk 0:01:48.6]} 29. Rg1 {[%clk 0:00:06.3]}
29... Qb7 {[%clk 0:01:39.5]} 30. Bxe5 {[%clk 0:00:04.3]} 30... dxe5 {[%clk
0:01:39.4]} 31. Bd1 {[%clk 0:00:04]} 31... e4 {[%clk 0:01:35]} 32. fxe4 {[%clk
0:00:02.7]} 32... Bxe4 {[%clk 0:01:34.7]} 0-1

[Event "*** Titled Tuesday Blitz"]
[Site "Chess.com"]
[Date "2021.04.20"]
[Round "2"]
[White "Fighter008"]
[Black "campomania3"]
[Result "1-0"]
[WhiteElo "2626"]
[BlackElo "2201"]
[TimeControl "180+1"]
[EndTime "10:16:05 PDT"]
[Termination "Fighter008 won on time"]

1. e4 {[%clk 0:03:00.9]} 1... c6 {[%clk 0:02:59.7]} 2. Nc3 {[%clk 0:03:00.5]}
2... d5 {[%clk 0:03:00]} 3. Nf3 {[%clk 0:03:01.2]} 3... Bg4 {[%clk 0:02:57.6]}
4. h3 {[%clk 0:03:00.1]} 4... Bxf3 {[%clk 0:02:57.4]} 5. Qxf3 {[%clk 0:03:01]}
5... e6 {[%clk 0:02:57.7]} 6. d3 {[%clk 0:03:01]} 6... Nd7 {[%clk 0:02:56.4]} 7.
Bd2 {[%clk 0:03:00.6]} 7... Bc5 {[%clk 0:02:53.1]} 8. O-O-O {[%clk 0:02:58.7]}
8... Ne7 {[%clk 0:02:35.2]} 9. g4 {[%clk 0:02:55.8]} 9... b5 {[%clk 0:02:25.3]}
10. g5 {[%clk 0:02:53.7]} 10... a5 {[%clk 0:02:07.6]} 11. Kb1 {[%clk 0:02:53]}
11... a4 {[%clk 0:02:03.5]} 12. Ne2 {[%clk 0:02:51.6]} 12... Qb6 {[%clk
0:01:42.1]} 13. Bg2 {[%clk 0:02:44.5]} 13... b4 {[%clk 0:01:33.5]} 14. d4 {[%clk
0:02:39.7]} 14... Bd6 {[%clk 0:01:27.1]} 15. e5 {[%clk 0:02:37.4]} 15... Bc7
{[%clk 0:01:25.7]} 16. Bc1 {[%clk 0:02:35.5]} 16... c5 {[%clk 0:01:04.6]} 17.
dxc5 {[%clk 0:02:32.1]} 17... Nxc5 {[%clk 0:01:02.7]} 18. Qe3 {[%clk 0:02:28.9]}
18... Nf5 {[%clk 0:00:44.7]} 19. Qf4 {[%clk 0:02:26.1]} 19... b3 {[%clk
0:00:37.7]} 20. cxb3 {[%clk 0:02:25]} 20... axb3 {[%clk 0:00:37]} 21. a3 {[%clk
0:02:25.4]} 21... Ra4 {[%clk 0:00:33.9]} 22. Nd4 {[%clk 0:02:20.9]} 22... Nd7
{[%clk 0:00:12.9]} 23. Be3 {[%clk 0:02:10.5]} 23... Nxe3 {[%clk 0:00:12.4]} 24.
fxe3 {[%clk 0:02:10.1]} 24... Bxe5 {[%clk 0:00:11.7]} 25. Qf2 {[%clk 0:02:08.6]}
25... Bxd4 {[%clk 0:00:11.5]} 26. exd4 {[%clk 0:02:08.6]} 26... Rc4 {[%clk
0:00:11.1]} 27. h4 {[%clk 0:02:05.7]} 27... Rc2 {[%clk 0:00:09.6]} 28. Rd2
{[%clk 0:02:06.1]} 28... Qc6 {[%clk 0:00:08.1]} 29. Rxc2 {[%clk 0:02:04.4]}
29... bxc2+ {[%clk 0:00:07.4]} 30. Qxc2 {[%clk 0:02:05]} 30... Qb6 {[%clk
0:00:07.6]} 31. h5 {[%clk 0:01:58.6]} 31... O-O {[%clk 0:00:07]} 32. g6 {[%clk
0:01:58.1]} 32... h6 {[%clk 0:00:05.7]} 33. Rd1 {[%clk 0:01:52.8]} 33... Nf6
{[%clk 0:00:05.3]} 34. gxf7+ {[%clk 0:01:51.8]} 34... Rxf7 {[%clk 0:00:05.1]}
35. Qg6 {[%clk 0:01:51.6]} 35... Rc7 {[%clk 0:00:02.9]} 36. Bh3 {[%clk
0:01:45.1]} 36... Rc6 {[%clk 0:00:02]} 37. Rg1 {[%clk 0:01:41.1]} 1-0

[Event "*** Titled Tuesday Blitz"]
[Site "Chess.com"]
[Date "2021.04.20"]
[Round "2"]
[White "gmcorrales"]
[Black "Hangar-18"]
[Result "1-0"]
[WhiteElo "2813"]
[BlackElo "2347"]
[TimeControl "180+1"]
[EndTime "10:16:05 PDT"]
[Termination "gmcorrales won by resignation"]

1. e4 {[%clk 0:03:00.9]} 1... c6 {[%clk 0:02:59.5]} 2. d4 {[%clk 0:03:00.8]}
2... d5 {[%clk 0:02:59.9]} 3. e5 {[%clk 0:03:01.5]} 3... c5 {[%clk 0:03:00.2]}
4. dxc5 {[%clk 0:03:01.6]} 4... e6 {[%clk 0:03:00.1]} 5. Nf3 {[%clk 0:03:02.5]}
5... Bxc5 {[%clk 0:02:56.3]} 6. a3 {[%clk 0:03:02.7]} 6... Nd7 {[%clk
0:02:45.8]} 7. Bd3 {[%clk 0:03:02.8]} 7... Qc7 {[%clk 0:02:39.4]} 8. b4 {[%clk
0:02:57.2]} 8... Be7 {[%clk 0:02:37.7]} 9. Bb2 {[%clk 0:02:57.6]} 9... f6 {[%clk
0:02:31.8]} 10. exf6 {[%clk 0:02:57.7]} 10... Ngxf6 {[%clk 0:02:30.2]} 11. O-O
{[%clk 0:02:57.2]} 11... O-O {[%clk 0:02:29.3]} 12. Re1 {[%clk 0:02:55.9]} 12...
Nb6 {[%clk 0:02:21.6]} 13. Nbd2 {[%clk 0:02:55.2]} 13... a5 {[%clk 0:02:06]} 14.
b5 {[%clk 0:02:41.3]} 14... a4 {[%clk 0:01:58.2]} 15. Ng5 {[%clk 0:02:32.6]}
15... Bd6 {[%clk 0:01:41.8]} 16. h3 {[%clk 0:02:25.8]} 16... e5 {[%clk
0:01:35.1]} 17. c4 {[%clk 0:02:12.5]} 17... e4 {[%clk 0:01:23.9]} 18. Bf1 {[%clk
0:02:08.5]} 18... h6 {[%clk 0:01:10.3]} 19. Bxf6 {[%clk 0:02:06.2]} 19... Rxf6
{[%clk 0:01:08.1]} 20. Ngxe4 {[%clk 0:02:06.2]} 20... dxe4 {[%clk 0:01:02.8]}
21. Nxe4 {[%clk 0:02:07.1]} 21... Re6 {[%clk 0:00:43]} 22. c5 {[%clk 0:01:51.7]}
22... Bh2+ {[%clk 0:00:40.4]} 23. Kh1 {[%clk 0:01:51.6]} 23... Qe7 {[%clk
0:00:20.4]} 24. cxb6 {[%clk 0:01:45.7]} 24... Rxe4 {[%clk 0:00:20]} 25. Rxe4
{[%clk 0:01:44.7]} 25... Qxe4 {[%clk 0:00:19.9]} 26. Qd8+ {[%clk 0:01:45.2]}
26... Kf7 {[%clk 0:00:19.6]} 27. Kxh2 {[%clk 0:01:41]} 27... Qe5+ {[%clk
0:00:18.7]} 28. Kg1 {[%clk 0:01:38.1]} 28... Qxa1 {[%clk 0:00:18.5]} 29. h4
{[%clk 0:01:24.9]} 29... Be6 {[%clk 0:00:16.1]} 30. Qxa8 {[%clk 0:01:23.2]}
30... Bc4 {[%clk 0:00:16.1]} 31. Qxb7+ {[%clk 0:01:23.6]} 31... Kf6 {[%clk
0:00:12.3]} 32. Qc6+ {[%clk 0:01:23.5]} 32... Be6 {[%clk 0:00:12.3]} 33. b7
{[%clk 0:01:23.9]} 33... Qe5 {[%clk 0:00:11.9]} 34. b6 {[%clk 0:01:24.4]} 1-0

[Event "*** Titled Tuesday Blitz"]
[Site "Chess.com"]
[Date "2021.04.20"]
[Round "2"]
[White "Sashadav97"]
[Black "Genghis_K"]
[Result "1-0"]
[WhiteElo "2614"]
[BlackElo "2929"]
[TimeControl "180+1"]
[EndTime "10:16:06 PDT"]
[Termination "Sashadav97 won by resignation"]

1. d4 {[%clk 0:03:00.9]} 1... Nf6 {[%clk 0:02:59.1]} 2. c4 {[%clk 0:03:00.9]}
2... g6 {[%clk 0:02:58.9]} 3. Nc3 {[%clk 0:02:59.5]} 3... Bg7 {[%clk 0:02:58.7]}
4. e4 {[%clk 0:02:59.6]} 4... d6 {[%clk 0:02:59.4]} 5. Be2 {[%clk 0:02:59.8]}
5... O-O {[%clk 0:02:59.8]} 6. Be3 {[%clk 0:03:00.4]} 6... c6 {[%clk 0:02:59.7]}
7. Nf3 {[%clk 0:02:59]} 7... e5 {[%clk 0:02:59]} 8. d5 {[%clk 0:02:52.6]} 8...
Ng4 {[%clk 0:02:58.8]} 9. Bg5 {[%clk 0:02:52.2]} 9... f6 {[%clk 0:02:58]} 10.
Bh4 {[%clk 0:02:51]} 10... c5 {[%clk 0:02:56.9]} 11. Nd2 {[%clk 0:02:48.7]}
11... Nh6 {[%clk 0:02:56.2]} 12. g4 {[%clk 0:02:46.1]} 12... Nf7 {[%clk
0:02:55.3]} 13. f3 {[%clk 0:02:16.4]} 13... Bh6 {[%clk 0:02:54.3]} 14. Bf2
{[%clk 0:02:17.1]} 14... Na6 {[%clk 0:02:51.8]} 15. h4 {[%clk 0:02:13.4]} 15...
Bf4 {[%clk 0:02:51.1]} 16. a3 {[%clk 0:02:03.2]} 16... Bd7 {[%clk 0:02:38.5]}
17. Qc2 {[%clk 0:02:03.2]} 17... Nc7 {[%clk 0:02:36]} 18. O-O-O {[%clk
0:02:02.3]} 18... a6 {[%clk 0:02:33.7]} 19. Bd3 {[%clk 0:01:49.6]} 19... b5
{[%clk 0:02:33.4]} 20. Ne2 {[%clk 0:01:50]} 20... Rb8 {[%clk 0:02:26.8]} 21.
Nxf4 {[%clk 0:01:29.8]} 21... exf4 {[%clk 0:02:27.7]} 22. g5 {[%clk 0:01:30.6]}
22... Ne5 {[%clk 0:02:23.9]} 23. h5 {[%clk 0:01:26.3]} 23... fxg5 {[%clk
0:02:20.4]} 24. hxg6 {[%clk 0:01:26.1]} 24... hxg6 {[%clk 0:02:17.9]} 25. Rh6
{[%clk 0:01:21.5]} 25... Qf6 {[%clk 0:02:02.7]} 26. Rdh1 {[%clk 0:01:21.1]}
26... g4 {[%clk 0:01:51.7]} 27. fxg4 {[%clk 0:01:02.2]} 27... Nxg4 {[%clk
0:01:52.6]} 28. e5 {[%clk 0:00:59]} 28... Nxe5 {[%clk 0:01:34.2]} 29. Bxg6
{[%clk 0:00:53.6]} 29... Bf5 {[%clk 0:01:24.7]} 30. Bxf5 {[%clk 0:00:36.9]}
30... Qxf5 {[%clk 0:01:25.6]} 31. Rg1+ {[%clk 0:00:36.8]} 31... Ng4 {[%clk
0:01:19.3]} 32. Rg6+ {[%clk 0:00:32.8]} 32... Kh7 {[%clk 0:01:16.6]} 33. R6xg4
{[%clk 0:00:30.6]} 33... Qxc2+ {[%clk 0:01:05.9]} 34. Kxc2 {[%clk 0:00:31.5]}
1-0

[Event "*** Titled Tuesday Blitz"]
[Site "Chess.com"]
[Date "2021.04.20"]
[Round "2"]
[White "WinstonSilvakov"]
[Black "Sjakkerntobi"]
[Result "0-1"]
[WhiteElo "2093"]
[BlackElo "2394"]
[TimeControl "180+1"]
[EndTime "10:16:08 PDT"]
[Termination "Sjakkerntobi won by resignation"]

1. e4 {[%clk 0:03:00.9]} 1... e6 {[%clk 0:03:00]} 2. d4 {[%clk 0:02:54.7]} 2...
d5 {[%clk 0:02:59.5]} 3. Nc3 {[%clk 0:02:50.5]} 3... h6 {[%clk 0:02:58.6]} 4.
Nf3 {[%clk 0:02:45.3]} 4... Nf6 {[%clk 0:02:56]} 5. e5 {[%clk 0:02:28.5]} 5...
Ne4 {[%clk 0:02:54.3]} 6. Bd3 {[%clk 0:02:24.7]} 6... Bb4 {[%clk 0:02:52.5]} 7.
Bd2 {[%clk 0:02:20.2]} 7... Nxd2 {[%clk 0:02:51.1]} 8. Qxd2 {[%clk 0:02:16.3]}
8... c5 {[%clk 0:02:52]} 9. a3 {[%clk 0:02:13.5]} 9... Bxc3 {[%clk 0:02:51.1]}
10. bxc3 {[%clk 0:02:12.2]} 10... Nc6 {[%clk 0:02:40.5]} 11. O-O {[%clk
0:02:04.1]} 11... Qa5 {[%clk 0:02:38.5]} 12. Rfb1 {[%clk 0:01:48.9]} 12... cxd4
{[%clk 0:02:29.3]} 13. Bb5 {[%clk 0:01:25.4]} 13... Qxc3 {[%clk 0:02:23.2]} 14.
Qd1 {[%clk 0:01:12.4]} 14... O-O {[%clk 0:02:16.6]} 15. Bxc6 {[%clk 0:01:09.2]}
15... bxc6 {[%clk 0:02:15.3]} 16. Nxd4 {[%clk 0:01:10.1]} 16... c5 {[%clk
0:02:13.1]} 17. Nc6 {[%clk 0:01:10.5]} 17... Bd7 {[%clk 0:02:08.5]} 18. Rb3
{[%clk 0:01:06.6]} 18... Qc4 {[%clk 0:02:01.8]} 19. Na5 {[%clk 0:01:06.6]} 19...
Qe4 {[%clk 0:01:59.8]} 20. Nb7 {[%clk 0:01:03.9]} 20... Qxe5 {[%clk 0:01:46.7]}
21. Nxc5 {[%clk 0:01:02.6]} 21... Bc6 {[%clk 0:01:47.1]} 22. Re3 {[%clk
0:00:56.3]} 22... Qd6 {[%clk 0:01:43.5]} 23. Qd4 {[%clk 0:00:53]} 23... Rfe8
{[%clk 0:01:30.7]} 24. Rg3 {[%clk 0:00:21.9]} 24... e5 {[%clk 0:01:24.2]} 25.
Qg4 {[%clk 0:00:22.4]} 25... g6 {[%clk 0:01:24]} 26. Nd3 {[%clk 0:00:21.3]}
26... Kh7 {[%clk 0:01:14.4]} 27. Qh4 {[%clk 0:00:19]} 27... Qe7 {[%clk
0:01:11.1]} 28. Qg4 {[%clk 0:00:19.1]} 28... Bd7 {[%clk 0:01:09.1]} 29. Qf3
{[%clk 0:00:16.8]} 29... e4 {[%clk 0:01:07.1]} 0-1

[Event "*** Titled Tuesday Blitz"]
[Site "Chess.com"]
[Date "2021.04.20"]
[Round "2"]
[White "blitzking1729"]
[Black "TimKett"]
[Result "1-0"]
[WhiteElo "2641"]
[BlackElo "2247"]
[TimeControl "180+1"]
[EndTime "10:16:09 PDT"]
[Termination "blitzking1729 won by checkmate"]

1. c4 {[%clk 0:03:00.9]} 1... f5 {[%clk 0:02:59]} 2. Nc3 {[%clk 0:02:59.2]} 2...
Nf6 {[%clk 0:02:59.2]} 3. d4 {[%clk 0:02:59.4]} 3... e6 {[%clk 0:02:58.8]} 4. g3
{[%clk 0:02:58.3]} 4... Bb4 {[%clk 0:02:58.7]} 5. Bg2 {[%clk 0:02:58.5]} 5...
O-O {[%clk 0:02:58.6]} 6. Nh3 {[%clk 0:02:58]} 6... d6 {[%clk 0:02:56]} 7. O-O
{[%clk 0:02:56.5]} 7... Bxc3 {[%clk 0:02:56.1]} 8. bxc3 {[%clk 0:02:56.4]} 8...
Nbd7 {[%clk 0:02:51.7]} 9. Nf4 {[%clk 0:02:53.2]} 9... Qe7 {[%clk 0:02:48.6]}
10. d5 {[%clk 0:02:50.3]} 10... Nc5 {[%clk 0:02:40.3]} 11. dxe6 {[%clk
0:02:39.9]} 11... Bxe6 {[%clk 0:02:35]} 12. Qd4 {[%clk 0:02:35.2]} 12... Kh8
{[%clk 0:02:30.5]} 13. Be3 {[%clk 0:02:32.1]} 13... Bg8 {[%clk 0:02:27.5]} 14.
Rab1 {[%clk 0:02:19.4]} 14... c6 {[%clk 0:02:24.9]} 15. Rfd1 {[%clk 0:02:11.9]}
15... Rad8 {[%clk 0:02:24.4]} 16. Nd3 {[%clk 0:01:54.9]} 16... Ng4 {[%clk
0:02:15.2]} 17. Nxc5 {[%clk 0:01:50.9]} 17... dxc5 {[%clk 0:02:11.3]} 18. Qxc5
{[%clk 0:01:47.7]} 18... Qe6 {[%clk 0:01:59.6]} 19. Bd4 {[%clk 0:01:31]} 19...
Qxc4 {[%clk 0:01:55.4]} 20. Qxc4 {[%clk 0:01:29.1]} 20... Bxc4 {[%clk
0:01:54.3]} 21. Rxb7 {[%clk 0:01:29]} 21... Nf6 {[%clk 0:01:25.8]} 22. Bxc6
{[%clk 0:01:22.6]} 22... Bxe2 {[%clk 0:01:24.1]} 23. Re1 {[%clk 0:01:21.8]}
23... Bc4 {[%clk 0:01:16.9]} 24. Ree7 {[%clk 0:01:20.1]} 24... Rg8 {[%clk
0:01:16.7]} 25. Bxf6 {[%clk 0:00:53.7]} 25... Rd1+ {[%clk 0:01:16.1]} 26. Kg2
{[%clk 0:00:53.6]} 26... Bf1+ {[%clk 0:01:16.7]} 27. Kf3 {[%clk 0:00:53.5]}
27... Rd3+ {[%clk 0:01:15]} 28. Kf4 {[%clk 0:00:53]} 28... Rc8 {[%clk
0:01:09.1]} 29. Rxg7 {[%clk 0:00:37.5]} 29... Rd6 {[%clk 0:00:48.4]} 30. Rxh7+
{[%clk 0:00:35.8]} 30... Kg8 {[%clk 0:00:48.4]} 31. Rh8# {[%clk 0:00:35.6]} 1-0

[Event "*** Titled Tuesday Blitz"]
[Site "Chess.com"]
[Date "2021.04.20"]
[Round "2"]
[White "sara_khm"]
[Black "Vanina1989"]
[Result "0-1"]
[WhiteElo "2525"]
[BlackElo "2787"]
[TimeControl "180+1"]
[EndTime "10:16:10 PDT"]
[Termination "Vanina1989 won by resignation"]

1. d4 {[%clk 0:03:00.9]} 1... d5 {[%clk 0:02:59.6]} 2. c4 {[%clk 0:03:00.8]}
2... c6 {[%clk 0:02:59.2]} 3. Nf3 {[%clk 0:03:00.3]} 3... Nf6 {[%clk 0:02:59.6]}
4. e3 {[%clk 0:03:00.7]} 4... Bg4 {[%clk 0:02:58.9]} 5. h3 {[%clk 0:02:58.7]}
5... Bh5 {[%clk 0:02:58.8]} 6. g4 {[%clk 0:02:58.9]} 6... Bg6 {[%clk 0:02:58.9]}
7. Ne5 {[%clk 0:02:59.2]} 7... e6 {[%clk 0:02:56.7]} 8. Qb3 {[%clk 0:02:55.5]}
8... Bxb1 {[%clk 0:02:31.7]} 9. Rxb1 {[%clk 0:02:54.6]} 9... Nbd7 {[%clk
0:02:31.7]} 10. Qxb7 {[%clk 0:02:11.9]} 10... Rb8 {[%clk 0:02:27.6]} 11. Qxc6
{[%clk 0:02:06.1]} 11... Bb4+ {[%clk 0:02:27]} 12. Bd2 {[%clk 0:01:58.4]} 12...
Bxd2+ {[%clk 0:02:26.3]} 13. Kxd2 {[%clk 0:01:58.7]} 13... O-O {[%clk
0:01:48.9]} 14. Nxd7 {[%clk 0:01:57.5]} 14... Nxd7 {[%clk 0:01:48.7]} 15. cxd5
{[%clk 0:01:51.6]} 15... Qa5+ {[%clk 0:01:29.5]} 16. Qc3 {[%clk 0:01:44.9]}
16... Qxd5 {[%clk 0:01:27.3]} 17. Bd3 {[%clk 0:00:57.8]} 17... Rfc8 {[%clk
0:01:26.1]} 18. Qa3 {[%clk 0:00:54.3]} 18... e5 {[%clk 0:01:21.4]} 19. Rhc1
{[%clk 0:00:43]} 19... exd4 {[%clk 0:01:20.9]} 20. Rxc8+ {[%clk 0:00:33.8]}
20... Rxc8 {[%clk 0:01:20.6]} 21. Rc1 {[%clk 0:00:23.8]} 21... dxe3+ {[%clk
0:01:19]} 22. fxe3 {[%clk 0:00:20]} 22... Qg2+ {[%clk 0:01:16.5]} 23. Be2 {[%clk
0:00:20.2]} 23... Rxc1 {[%clk 0:01:16]} 24. Kxc1 {[%clk 0:00:20.6]} 24... Qxe2
{[%clk 0:01:16.2]} 25. Qxa7 {[%clk 0:00:21.3]} 25... Qc4+ {[%clk 0:01:08.5]} 26.
Kd2 {[%clk 0:00:19.1]} 26... Qd5+ {[%clk 0:01:07.8]} 27. Kc1 {[%clk 0:00:18.7]}
27... h6 {[%clk 0:01:06.4]} 28. a4 {[%clk 0:00:18.9]} 28... Nc5 {[%clk
0:01:05.5]} 29. a5 {[%clk 0:00:18]} 29... Nb3+ {[%clk 0:01:00.4]} 0-1

[Event "*** Titled Tuesday Blitz"]
[Site "Chess.com"]
[Date "2021.04.20"]
[Round "2"]
[White "dodorox"]
[Black "volkanyirik"]
[Result "0-1"]
[WhiteElo "2110"]
[BlackElo "2404"]
[TimeControl "180+1"]
[EndTime "10:16:10 PDT"]
[Termination "volkanyirik won on time"]

1. d4 {[%clk 0:03:00.9]} 1... Nf6 {[%clk 0:02:59.7]} 2. c4 {[%clk 0:03:01]} 2...
c5 {[%clk 0:03:00.1]} 3. d5 {[%clk 0:03:01]} 3... b5 {[%clk 0:03:00.2]} 4. cxb5
{[%clk 0:03:01.9]} 4... a6 {[%clk 0:03:00.4]} 5. bxa6 {[%clk 0:03:02.8]} 5...
Bxa6 {[%clk 0:03:01.1]} 6. Nc3 {[%clk 0:03:03]} 6... d6 {[%clk 0:03:01.6]} 7. g3
{[%clk 0:03:03.6]} 7... g6 {[%clk 0:03:01.3]} 8. Bg2 {[%clk 0:03:04]} 8... Bg7
{[%clk 0:03:01.9]} 9. Nf3 {[%clk 0:03:04.6]} 9... O-O {[%clk 0:03:02.5]} 10. Rb1
{[%clk 0:03:05.1]} 10... Nbd7 {[%clk 0:03:03.1]} 11. b3 {[%clk 0:03:05.6]} 11...
Qa5 {[%clk 0:03:02.5]} 12. Bd2 {[%clk 0:03:05.9]} 12... Rfb8 {[%clk 0:03:02]}
13. O-O {[%clk 0:03:04.8]} 13... Qc7 {[%clk 0:02:59.6]} 14. h3 {[%clk 0:02:54]}
14... Bb7 {[%clk 0:02:53.8]} 15. e4 {[%clk 0:02:47.9]} 15... Ba6 {[%clk
0:02:53.7]} 16. Re1 {[%clk 0:02:48.2]} 16... Ne8 {[%clk 0:02:54.2]} 17. Qc2
{[%clk 0:02:44.3]} 17... Qb7 {[%clk 0:02:43.8]} 18. a4 {[%clk 0:02:38.1]} 18...
Nc7 {[%clk 0:02:41.4]} 19. Na2 {[%clk 0:02:15.6]} 19... Qa7 {[%clk 0:02:24.2]}
20. b4 {[%clk 0:02:08.9]} 20... cxb4 {[%clk 0:02:20.2]} 21. Nxb4 {[%clk
0:02:08.3]} 21... Nc5 {[%clk 0:02:19.5]} 22. Nc6 {[%clk 0:01:57.5]} 22... Bd3
{[%clk 0:02:12.1]} 23. Qxd3 {[%clk 0:00:35.7]} 23... Nxd3 {[%clk 0:02:07.5]} 24.
Rxb8+ {[%clk 0:00:33]} 24... Qxb8 {[%clk 0:01:58.5]} 25. Nxb8 {[%clk 0:00:32.8]}
25... Nxe1 {[%clk 0:01:58.4]} 26. Nxe1 {[%clk 0:00:22.3]} 26... Rxb8 {[%clk
0:01:56.6]} 27. Bf1 {[%clk 0:00:20.5]} 27... Rb2 {[%clk 0:01:51.3]} 28. Be3
{[%clk 0:00:19]} 28... Rb4 {[%clk 0:01:45.9]} 29. a5 {[%clk 0:00:17.6]} 29...
Rxe4 {[%clk 0:01:45.8]} 30. Bb6 {[%clk 0:00:12.3]} 30... Na8 {[%clk 0:01:43]}
31. Nd3 {[%clk 0:00:09.6]} 31... Ra4 {[%clk 0:01:37]} 32. Nb2 {[%clk 0:00:07.3]}
32... Nxb6 {[%clk 0:01:30.6]} 33. axb6 {[%clk 0:00:06.9]} 33... Bxb2 {[%clk
0:01:27.4]} 0-1

[Event "*** Titled Tuesday Blitz"]
[Site "Chess.com"]
[Date "2021.04.20"]
[Round "2"]
[White "BigAl"]
[Black "eljanov"]
[Result "0-1"]
[WhiteElo "2580"]
[BlackElo "2879"]
[TimeControl "180+1"]
[EndTime "10:16:12 PDT"]
[Termination "eljanov won by resignation"]

1. e4 {[%clk 0:03:00.9]} 1... c6 {[%clk 0:02:59.9]} 2. d3 {[%clk 0:02:56.9]}
2... d5 {[%clk 0:03:00]} 3. Nd2 {[%clk 0:02:57.8]} 3... e5 {[%clk 0:02:59.7]} 4.
g3 {[%clk 0:02:57.9]} 4... Nf6 {[%clk 0:02:59.4]} 5. Bg2 {[%clk 0:02:58.5]} 5...
Bd6 {[%clk 0:03:00]} 6. Ngf3 {[%clk 0:02:58.6]} 6... O-O {[%clk 0:03:00.2]} 7.
O-O {[%clk 0:02:58.7]} 7... Re8 {[%clk 0:02:59.9]} 8. c3 {[%clk 0:02:56.4]} 8...
a5 {[%clk 0:03:00.3]} 9. a4 {[%clk 0:02:56]} 9... h6 {[%clk 0:02:54]} 10. h3
{[%clk 0:02:47.7]} 10... Be6 {[%clk 0:02:54.3]} 11. Nh4 {[%clk 0:02:46.4]} 11...
Nbd7 {[%clk 0:02:53.4]} 12. Qf3 {[%clk 0:02:43.4]} 12... g6 {[%clk 0:02:45.7]}
13. Rd1 {[%clk 0:02:24.1]} 13... Qc7 {[%clk 0:02:39.2]} 14. Nf1 {[%clk
0:02:23.9]} 14... Bf8 {[%clk 0:02:36.4]} 15. Ne3 {[%clk 0:02:14.9]} 15... Rad8
{[%clk 0:02:34.3]} 16. Bd2 {[%clk 0:02:07.8]} 16... Bg7 {[%clk 0:02:23]} 17.
Nhf5 {[%clk 0:01:52.5]} 17... dxe4 {[%clk 0:02:19.8]} 18. dxe4 {[%clk
0:01:50.9]} 18... gxf5 {[%clk 0:02:20.1]} 19. Nxf5 {[%clk 0:01:46.8]} 19... Bxf5
{[%clk 0:02:19.9]} 20. Qxf5 {[%clk 0:01:47.1]} 20... Nc5 {[%clk 0:02:18.2]} 21.
Bxh6 {[%clk 0:01:42.6]} 21... Qc8 {[%clk 0:02:05.9]} 22. Qg5 {[%clk 0:01:34.1]}
22... Ne6 {[%clk 0:02:05.4]} 23. Qh4 {[%clk 0:01:32.1]} 23... Rxd1+ {[%clk
0:01:59.4]} 24. Rxd1 {[%clk 0:01:31.2]} 24... Rd8 {[%clk 0:02:00.3]} 25. Re1
{[%clk 0:01:28.2]} 25... Rd6 {[%clk 0:01:52]} 26. Bf1 {[%clk 0:01:26.6]} 26...
Qd8 {[%clk 0:01:50.5]} 27. Bc4 {[%clk 0:01:23.2]} 27... Rd1 {[%clk 0:01:30.3]}
28. Rxd1 {[%clk 0:01:03.1]} 28... Qxd1+ {[%clk 0:01:31.2]} 29. Kg2 {[%clk
0:01:02]} 29... Qh5 {[%clk 0:01:14.4]} 30. Qxh5 {[%clk 0:01:01.1]} 30... Nxh5
{[%clk 0:01:15.3]} 31. Be3 {[%clk 0:01:01.7]} 31... Nf6 {[%clk 0:01:15.5]} 32.
f3 {[%clk 0:00:58.6]} 32... Nd7 {[%clk 0:01:15.7]} 33. h4 {[%clk 0:00:57.1]}
33... Bf8 {[%clk 0:01:12.7]} 34. Kh3 {[%clk 0:00:53.3]} 34... Nec5 {[%clk
0:01:11.6]} 35. b3 {[%clk 0:00:49.2]} 35... Nb6 {[%clk 0:01:11.7]} 36. Bxc5
{[%clk 0:00:43.6]} 36... Bxc5 {[%clk 0:01:11.2]} 37. Kg4 {[%clk 0:00:28.8]}
37... Nxc4 {[%clk 0:01:11.1]} 38. bxc4 {[%clk 0:00:29.7]} 38... b5 {[%clk
0:01:11.4]} 39. cxb5 {[%clk 0:00:26.3]} 39... cxb5 {[%clk 0:01:11.7]} 40. axb5
{[%clk 0:00:26.8]} 40... a4 {[%clk 0:01:12.2]} 0-1